bitfinex/quotes_SOLUSD_20240726
["timestamp","ask_amount","ask_price","bid_price","bid_amount"]
[1722008109515,72.71106315,182.02,181.91,6.59634998]
[1722008109712,21.321,182.05,181.91,6.59634998]
[1722008109713,21.321,182.05,181.92,13.7417]
[1722008109903,21.321,182.05,181.95,5.4958]
[1722008110218,1.37358415,182.04,181.96,5.4957]
[1722008110504,1.37358415,182.04,181.97,5.4953]
[1722008110807,15.0201,182.05,181.98,6.59372079]
[1722008111015,32.4467,182.09,181.99,5.4947]
[1722008111214,48.6421,182.09,181.99,6.59331722]
[1722008111594,5.4927,182.06,181.97,13.7379]
[1722008111793,5.4924,182.07,181.97,19.2332]
[1722008112002,22.5021,182.09,181.98,1.09865386]
[1722008112298,27.9939,182.09,181.99,6.5931164]
[1722008112809,22.5021,182.09,181.95,16.60462271]
[1722008112984,5.4929,182.06,181.96,50.4956]
[1722008113404,5.4923,182.07,181.98,5.4951]
[1722008113715,5.4924,182.07,181.97,5.4953]
[1722008113916,5.4927,182.06,181.96,64.2342]
[1722008114122,5.4927,182.06,181.96,65.33292353]
[1722008114492,5.4931,182.05,181.95,16.60472357]
[1722008114813,5.4936,182.03,181.96,1.09885439]
[1722008115195,5.4936,182.03,181.94,6.5952462]
[1722008115412,5.4933,182.04,181.94,6.5952462]
[1722008115703,5.493,182.05,181.95,5.4959]
[1722008116107,26.14,182.06,181.96,5.4955]
[1722008116407,31.6326,182.06,181.96,5.4955]
[1722008116900,48.6421,182.09,181.96,1.09883066]
[1722008117111,50.4923,182.08,181.98,5.495]
[1722008117321,50.4923,182.08,181.99,1.09872776]
[1722008117618,22.5021,182.09,181.99,1.09872776]
[1722008118412,27.9939,182.09,181.99,6.59342776]
[1722008119097,5.4924,182.07,181.97,6.59369614]
[1722008119296,5.4921,182.08,181.98,50.495]
[1722008119709,1.37324533,182.07,181.98,50.495]
[1722008119906,1.37324533,182.07,182.0,5.4943]
[1722008120095,22.5021,182.09,181.98,58.7376]
[1722008120291,22.5021,182.09,182.0,13.7357]
[1722008120499,22.5021,182.09,182.01,5.4941]
[1722008120715,22.5021,182.09,182.01,5.4939]
[1722008121017,1.37324602,182.08,182.0,13.7357]
[1722008121218,1.37324602,182.07,182.0,13.7357]
[1722008122119,27.9938,182.09,182.0,13.7357]
[1722008122120,29.36704615,182.09,182.0,13.7357]
[1722008122711,6.86534639,182.08,181.98,50.495]
[1722008122937,1.37324639,182.08,181.99,5.4947]
[1722008123120,1.37324835,182.07,181.98,50.495]
[1722008123321,1.37324835,182.07,181.99,5.4947]
[1722008123614,1.3732466,182.06,181.97,5.4952]
[1722008123815,5.4922,182.08,181.98,5.4949]
[1722008123990,5.4924,182.07,181.97,5.4953]
[1722008124393,6.86613574,182.06,181.96,19.2341]
[1722008124610,5.4931,182.05,181.96,13.7385]
[1722008124808,50.01553574,182.09,181.96,13.7385]
[1722008125020,45.0,182.08,181.96,20.33264869]
[1722008125222,46.37343586,182.08,181.97,5.4954]
[1722008125598,1.37356555,182.07,181.96,13.7385]
[1722008125919,5.493,182.05,181.96,13.7385]
[1722008126127,5.493,182.05,181.96,19.2342]
[1722008126325,5.4933,182.04,181.97,1.09890633]
[1722008126523,5.4933,182.04,181.94,5.496]
[1722008126732,26.14,182.06,181.93,13.7413]
[1722008126908,5.4934,182.04,181.93,20.33683152]
[1722008127110,5.4934,182.04,181.94,5.4962]
[1722008127297,45.0,182.03,181.94,5.4962]
[1722008127628,26.14,182.06,181.95,5.496]
[1722008127812,6.86695157,182.04,181.94,5.4962]
[1722008128209,5.4933,182.04,181.95,1.09895518]
[1722008128518,5.4933,182.04,181.94,5.4962]
[1722008130026,70.493,182.05,181.95,5.4959]
[1722008130527,28.29203171,182.06,181.96,5.4956]
[1722008130528,5.4927,182.06,181.96,5.4956]
[1722008131209,5.493,182.05,181.95,19.2353]
[1722008131415,1.37356984,182.04,181.95,19.2353]
[1722008131713,6.86686984,182.04,181.95,19.2353]
[1722008132026,1.37356984,182.04,181.95,19.2353]
[1722008132211,45.0,182.04,181.91,29.98945693]
[1722008132415,1.37369616,182.05,181.91,29.98945693]
[1722008132416,5.4939,182.02,181.92,5.4966]
[1722008132729,5.4942,182.01,181.91,29.98945693]
[1722008133104,5.4942,182.01,181.91,35.48635693]
[1722008133306,5.4942,182.01,181.92,5.4968]
[1722008133505,16.3083,182.02,181.93,6.59558831]
[1722008134011,21.8023,182.02,181.93,1.09908831]
[1722008134512,5.4942,182.01,181.93,1.09908831]
[1722008135543,5.4946,182.0,181.94,1.0991391]
[1722008135707,16.3083,182.02,181.92,1.09913874]
[1722008135708,5.4948,181.99,181.92,1.09913874]
[1722008136031,5.4948,181.99,181.93,1.09920289]
[1722008136928,5.4947,182.0,181.93,1.09920289]
[1722008137236,5.4948,181.99,181.92,1.099203]
[1722008137441,5.4948,181.99,181.91,15.1482]
[1722008137442,5.4948,181.99,181.93,1.09920204]
[1722008137736,5.4945,182.0,181.93,1.09920204]
[1722008137924,11.7442,182.01,181.93,1.09920204]
[1722008138127,5.4945,182.0,181.93,1.09920204]
[1722008138432,5.4945,182.0,181.92,1.09913106]
[1722008138608,5.4945,182.0,181.93,1.09913895]
[1722008139131,5.4948,181.99,181.93,1.09913895]
[1722008139432,5.4948,181.99,181.91,15.1482]
[1722008139640,5.4948,181.99,181.92,1.09922625]
[1722008140332,6.25,182.01,181.93,1.09922608]
[1722008140635,18.51794423,182.02,181.93,1.09922608]
[1722008140947,16.3083,182.02,181.93,1.09922608]
[1722008141238,16.3083,182.02,181.93,5.4965]
[1722008141416,21.8022,182.02,181.94,1.09899847]
[1722008141833,5.4939,182.02,181.94,1.09899847]
[1722008142133,5.4936,182.03,181.94,1.09899847]
[1722008142643,27.5137058,182.09,181.94,14.83919847]
[1722008142830,5.4926,182.06,181.96,5.4956]
[1722008143349,5.4926,182.06,181.97,1.09885712]
[1722008143517,5.493,182.05,181.97,1.09885712]
[1722008144329,5.4927,182.06,181.97,1.09885712]
[1722008144539,28.3583414,182.09,181.96,7.21500333]
[1722008144722,25.4922,182.08,181.97,5.4951]
[1722008144914,28.3583414,182.09,181.96,6.1162]
[1722008144915,1.37346478,182.07,181.96,6.1162]
[1722008145121,1.37346478,182.07,181.96,7.21505136]
[1722008145913,5.4933,182.04,181.96,7.21505136]
[1722008146332,5.4933,182.04,181.96,6.1162]
[1722008146512,5.4933,182.04,181.96,7.21516757]
[1722008147441,1.37370885,182.04,181.93,5.4965]
[1722008147629,5.4939,182.02,181.92,11.6021]
[1722008147833,1.37370885,182.04,181.92,11.6021]
[1722008147834,26.14,182.03,181.92,6.1053]
[1722008148034,5.4942,182.01,181.92,6.1053]
[1722008148226,26.14,182.03,181.93,6.59545232]
[1722008148416,45.0,182.02,181.93,6.59545232]
[1722008148948,5.4942,182.01,181.93,1.09915232]
[1722008149120,50.4939,182.02,181.93,1.09915232]
[1722008151337,45.0,182.02,181.93,6.59565232]
[1722008151543,6.86756503,182.03,181.93,13.7408]
[1722008151731,45.0,182.02,181.93,13.7408]
[1722008152121,50.4941,182.02,181.94,1.09910964]
[1722008152652,45.0,182.02,181.94,1.09910964]
[1722008153525,50.4939,182.02,181.94,1.09910964]
[1722008154240,50.4939,182.02,181.86,42.7397]
[1722008154241,67.8817,182.01,181.86,42.7397]
[1722008154545,26.14,182.0,181.87,1.09938419]
[1722008154717,26.14,182.03,181.94,5.4962]
[1722008154918,26.14,182.03,181.95,1.09904276]
[1722008155122,26.14,182.1,181.96,1.09891404]
[1722008155550,26.14,182.1,181.99,13.7363]
[1722008156053,26.14,182.1,182.01,5.4941]
[1722008156258,26.14,182.1,181.99,13.7363]
[1722008156434,26.14,182.1,182.01,5.4941]
[1722008156627,31.6315,182.1,182.01,5.4941]
[1722008157637,31.6315,182.1,181.95,16.49]
[1722008157638,1.37319463,182.09,181.96,1.0985557]
[1722008157845,6.86519463,182.09,181.96,1.0985557]
[1722008158044,6.86519463,182.09,181.96,46.0985557]
[1722008158431,1.37319463,182.09,181.98,13.7376]
[1722008158639,1.37319463,182.09,182.0,5.4944]
[1722008159140,6.86499463,182.09,181.99,5.4947]
[1722008159530,6.86499463,182.09,181.98,13.7376]
[1722008159531,6.86499463,182.09,182.0,5.4944]
[1722008159736,1.37319463,182.09,182.0,5.4944]
[1722008160463,6.86499463,182.09,181.99,5.4947]
[1722008161535,6.86499463,182.09,182.0,5.4944]
[1722008161732,6.86519463,182.09,181.98,19.2324]
[1722008161934,5.4921,182.08,181.98,19.2324]
[1722008162134,1.37328825,182.07,181.98,13.7376]
[1722008162350,1.37328825,182.07,182.01,5.4941]
[1722008162933,1.37328825,182.07,181.98,13.7376]
[1722008163134,1.37329622,182.08,181.98,13.7376]
[1722008163627,1.3732951,182.07,181.98,13.7376]
[1722008163842,1.3732951,182.07,182.0,5.4944]
[1722008164035,1.37329525,182.08,182.01,5.4941]
[1722008164246,20.0,182.09,182.01,13.735]
[1722008164556,20.0,182.09,182.01,19.2291]
[1722008164557,13.06,182.06,182.01,19.2291]
[1722008166756,21.906,182.15,182.05,13.06]
[1722008166928,13.06,182.12,182.07,13.06]
[1722008167243,13.06,182.13,182.08,1.09830325]
[1722008167437,13.06,182.12,182.07,13.06]
[1722008168259,21.906,182.15,182.06,5.4925]
[1722008168634,15.3392,182.15,182.07,14.82859284]
[1722008168834,15.3392,182.15,182.08,1.09818298]
[1722008169232,15.3392,182.15,182.07,19.2227]
[1722008170274,15.3392,182.15,182.06,5.4926]
[1722008170563,6.86313091,182.14,182.04,64.226]
[1722008170968,5.4906,182.13,182.04,13.733]
[1722008171259,15.3392,182.15,182.04,13.733]
[1722008171633,41.4492,182.15,182.04,13.733]
[1722008171840,5.4906,182.13,182.04,19.2262]
[1722008172074,5.4909,182.12,182.02,20.8132]
[1722008172257,6.86428829,182.11,182.02,15.3195]
[1722008172578,26.11,182.12,182.01,19.2294]
[1722008172765,5.4913,182.11,182.01,13.7353]
[1722008173848,5.4915,182.1,182.01,13.7353]
[1722008174473,1.37318506,182.09,182.01,13.7353]
[1722008174645,21.37318506,182.09,182.01,13.7353]
[1722008174848,52.97498506,182.09,181.99,5.4947]
[1722008175158,20.0,182.09,182.0,5.4944]
[1722008175504,20.0,182.09,182.02,5.4938]
[1722008175844,25.4912,182.11,182.01,5.4941]
[1722008176166,6.86475945,182.1,182.0,19.2301]
[1722008176362,20.0,182.09,182.0,19.2301]
[1722008176570,20.0,182.09,181.98,16.0049]
[1722008176744,20.0,182.09,182.02,13.7342]
[1722008176948,20.0,182.11,182.03,5.4935]
[1722008177362,20.0,182.11,182.02,19.228]
[1722008177566,20.0,182.11,182.02,13.7342]
[1722008177761,1.37322235,182.1,182.02,13.7342]
[1722008178073,25.4914,182.11,182.02,19.228]
[1722008178271,26.86457626,182.11,182.02,13.7342]
[1722008178468,25.4914,182.11,182.02,19.228]
[1722008178665,20.0,182.11,182.02,19.228]
[1722008178848,20.0,182.11,182.03,5.4935]
[1722008179279,20.0,182.11,182.02,19.228]
[1722008179984,20.0,182.11,182.03,5.4934]
[1722008180191,20.0,182.11,182.04,5.4932]
[1722008180693,20.0,182.11,182.02,19.2278]
[1722008181486,20.0,182.11,182.03,5.4935]
[1722008181983,20.0,182.11,181.99,1.09854056]
[1722008181984,15.334,182.11,181.99,13.7369]
[1722008182290,5.4918,182.09,181.99,19.2316]
[1722008182576,5.4921,182.08,181.99,19.2316]
[1722008183012,5.4921,182.08,181.96,7.42429094]
[1722008183013,5.4921,182.08,181.98,5.495]
[1722008183161,6.86576693,182.07,181.96,13.7391]
[1722008183361,6.86576693,182.07,181.97,5.4951]
[1722008183560,5.493,182.05,181.95,21.6076]
[1722008183875,5.493,182.05,181.96,5.4957]
[1722008183876,16.96941297,182.04,181.96,5.4957]
[1722008184186,16.96941297,182.04,181.95,5.4959]
[1722008185162,16.96941297,182.04,181.96,5.4956]
[1722008185367,15.5958,182.04,181.96,5.4956]
[1722008185664,22.46277525,182.04,181.94,5.4961]
[1722008186058,5.4936,182.03,181.94,5.4961]
[1722008186255,1.3738082,182.02,181.94,5.4961]
[1722008186456,1.37379512,182.01,181.94,5.4961]
[1722008187064,1.37379512,182.01,181.93,19.2377]
[1722008187472,45.0,182.02,181.93,19.2377]
[1722008187877,1.37391028,182.01,181.93,19.2377]
[1722008188075,1.37396807,182.01,181.91,5.497]
[1722008188280,21.37396807,182.01,181.91,5.497]
[1722008188600,21.37396807,182.01,181.89,13.7438]
[1722008188601,35.018,181.99,181.89,13.7438]
[1722008188769,50.4951,181.98,181.89,13.7438]
[1722008189099,50.4951,181.98,181.89,19.2415]
[1722008189276,46.37427857,181.98,181.89,19.2415]
[1722008189586,15.018,181.99,181.9,1.0994221]
[1722008189791,15.018,181.99,181.92,13.7422]
[1722008190695,15.018,181.99,181.9,5.4974]
[1722008191779,16.39208181,181.99,181.9,5.4974]
[1722008191990,15.018,181.99,181.9,5.4974]
[1722008192464,15.018,181.99,181.91,5.4971]
[1722008193093,15.018,181.99,181.9,5.4975]
[1722008193774,15.018,181.99,181.91,5.4971]
[1722008194192,13.08,181.96,181.91,5.4971]
[1722008194996,15.018,181.99,181.93,13.08]
[1722008195190,13.08,181.98,181.93,13.08]
[1722008195573,28.098,181.99,181.94,26.8207]
[1722008196074,28.098,181.99,181.94,13.08]
[1722008196995,15.018,181.99,181.94,13.08]
[1722008197186,2.22122933,182.03,181.93,6.59566206]
[1722008197187,16.344,182.03,181.95,13.08]
[1722008197373,13.08,182.01,181.95,18.5759]
[1722008197774,13.08,182.01,181.96,20.33344415]
[1722008197974,13.08,182.01,181.96,19.2345]
[1722008198190,13.08,182.01,181.96,13.7389]
[1722008199092,13.08,182.01,181.96,26.8189]
[1722008199392,13.08,182.01,181.95,13.08]
[1722008199985,13.08,182.01,181.96,1.09894452]
[1722008200194,13.08,182.02,181.97,13.08]
[1722008200391,29.424,182.03,181.98,14.17887069]
[1722008201198,19.7173,182.04,181.99,14.17882284]
[1722008201391,13.08,182.04,181.99,14.17882284]
[1722008202002,13.08,182.03,181.99,1.09882284]
[1722008202371,13.08,182.03,181.98,18.575]
[1722008202885,13.08,182.03,181.98,1.09876403]
[1722008203082,15.7939,182.07,181.96,26.819]
[1722008203083,13.08,182.01,181.96,26.819]
[1722008203800,13.08,182.01,181.96,32.3147]
[1722008203998,5.4927,182.06,181.97,13.08]
[1722008204178,13.08,182.03,181.98,13.08]
[1722008204797,13.08,182.02,181.97,18.5753]
[1722008205204,13.08,182.02,181.98,1.09889629]
[1722008205516,13.08,182.02,181.97,13.08]
[1722008205703,13.08,182.02,181.98,1.098897]
[1722008207308,13.08,182.02,181.96,26.819]
[1722008207495,13.08,182.02,181.96,32.3146]
[1722008208891,13.08,182.02,181.97,1.09889713]
[1722008209093,13.08,182.02,181.97,19.67419713]
[1722008209704,15.7939,182.07,181.99,13.08]
[1722008209905,13.08,182.05,182.0,19.67314457]
[1722008210084,13.08,182.05,182.01,5.4941]
[1722008210281,13.08,182.06,182.01,6.59275063]
[1722008211085,28.8739,182.07,182.02,1.09861343]
[1722008211285,13.08,182.07,182.02,18.5737]
[1722008212708,13.08,182.08,182.03,18.5734]
[1722008212910,13.08,182.07,182.02,18.5738]
[1722008213207,13.08,182.07,182.03,1.09855881]
[1722008213604,13.08,182.07,182.02,18.5738]
[1722008213799,13.08,182.08,182.03,19.67205886]
[1722008214001,13.08,182.08,182.03,18.5735]
[1722008214208,13.08,182.09,182.04,13.08]
[1722008214388,13.08,182.09,182.03,18.5735]
[1722008215120,13.08,182.11,182.05,18.5728]
[1722008215421,13.08,182.12,182.06,19.67092488]
[1722008215609,13.08,182.12,182.07,13.08]
[1722008215814,13.08,182.12,182.08,1.0983341]
[1722008216319,15.7968,182.15,182.08,1.0983341]
[1722008216524,13.08,182.14,182.09,13.08]
[1722008216726,13.08,182.14,182.1,1.09818308]
[1722008217187,13.08,182.14,182.08,13.08]
[1722008217388,13.08,182.14,182.08,14.17818455]
[1722008218026,13.08,182.14,182.09,13.08]
[1722008218212,13.08,182.14,182.09,18.5717]
[1722008218406,5.4894,182.17,182.1,13.08]
[1722008218606,13.08,182.15,182.1,13.08]
[1722008218919,13.08,182.14,182.09,13.08]
[1722008219215,13.08,182.14,182.08,13.08]
[1722008219597,13.08,182.14,182.09,1.09818453]
[1722008219919,21.8975,182.19,182.1,13.08]
[1722008220111,21.8975,182.19,182.11,19.66914365]
[1722008220299,13.08,182.16,182.11,19.66914365]
[1722008220498,21.8975,182.19,182.12,13.08]
[1722008220499,13.08,182.17,182.12,13.08]
[1722008220806,13.08,182.16,182.11,18.5711]
[1722008221002,13.08,182.17,182.12,13.08]
[1722008222016,13.08,182.14,182.06,13.7316]
[1722008222311,52.32,182.16,182.06,13.08]
[1722008222512,13.08,182.12,182.07,13.08]
[1722008222719,13.08,182.13,182.07,13.08]
[1722008222905,13.08,182.13,182.07,18.5723]
[1722008223431,13.08,182.11,182.06,18.5726]
[1722008223595,18.5696,182.16,182.06,18.5726]
[1722008223805,13.08,182.12,182.07,18.5722]
[1722008223994,5.4894,182.17,182.07,18.5722]
[1722008223995,13.08,182.13,182.07,18.5722]
[1722008224190,13.08,182.12,182.07,18.5722]
[1722008224604,13.08,182.13,182.07,18.5722]
[1722008224930,13.08,182.13,182.08,5.492]
[1722008225420,13.08,182.13,182.07,13.08]
[1722008225626,13.08,182.13,182.08,26.8095]
[1722008225796,13.08,182.14,182.09,13.08]
[1722008226305,13.08,182.14,182.09,18.5717]
[1722008227124,13.08,182.14,182.1,5.4914]
[1722008229327,21.8975,182.19,182.12,5.4908]
[1722008229627,13.08,182.15,182.12,5.4908]
[1722008229832,13.08,182.18,182.13,19.66851973]
[1722008230000,13.08,182.18,182.12,18.5708]
[1722008230631,13.08,182.18,182.13,27.90405558]
[1722008230814,13.08,182.19,182.14,14.17795573]
[1722008231136,13.08,182.19,182.14,1.09795573]
[1722008231301,13.08,182.19,182.14,14.17795573]
[1722008231830,13.08,182.19,182.15,1.09789909]
[1722008232037,13.08,182.19,182.14,5.4902]
[1722008232218,13.08,182.19,182.14,5.4901]
[1722008232416,13.08,182.19,182.14,18.5701]
[1722008232632,13.08,182.19,182.14,18.5702]
[1722008233110,13.08,182.19,182.13,32.2966]
[1722008233313,1.37229399,182.22,182.14,5.49]
[1722008233536,13.08,182.19,182.14,13.08]
[1722008234407,13.08,182.2,182.15,5.4899]
[1722008234632,13.08,182.2,182.14,13.08]
[1722008234906,21.5661,182.23,182.16,5.4896]
[1722008235133,13.08,182.21,182.16,18.5696]
[1722008235455,6.5536,182.27,182.18,13.08]
[1722008235609,13.08,182.24,182.19,5.4884]
[1722008235804,6.5536,182.27,182.2,18.5683]
[1722008236004,6.5536,182.27,182.21,6.58557143]
[1722008236005,13.08,182.25,182.21,6.58557143]
[1722008236644,13.08,182.25,182.21,19.66557143]
[1722008236937,13.08,182.26,182.21,18.5681]
[1722008237228,13.08,182.26,182.22,1.09739279]
[1722008237745,13.08,182.26,182.21,18.5681]
[1722008238727,13.08,182.26,182.21,13.08]
[1722008239546,15.6637,182.28,182.21,13.08]
[1722008239715,23.142,182.32,182.27,5.4863]
[1722008239911,23.142,182.32,182.27,1.09719888]
[1722008239912,13.08,182.31,182.27,1.09719888]
[1722008240243,13.08,182.28,182.18,17.62683642]
[1722008240406,13.08,182.25,182.19,63.5687]
[1722008240606,13.08,182.24,182.19,13.08]
[1722008240834,13.08,182.22,182.17,13.08]
[1722008241410,13.08,182.2,182.14,47.6975]
[1722008241614,13.08,182.2,182.14,42.2076]
[1722008241843,13.08,182.19,182.14,47.6977]
[1722008242015,13.08,182.19,182.15,5.4899]
[1722008242723,13.08,182.2,182.17,13.723]
[1722008243039,13.08,182.22,182.18,1.0977462]
[1722008243338,13.08,182.23,182.18,18.5689]
[1722008244038,22.5846,182.28,182.19,18.5685]
[1722008244334,13.08,182.25,182.19,18.5685]
[1722008244541,13.08,182.25,182.19,13.08]
[1722008244744,13.08,182.23,182.18,18.569]
[1722008244915,13.08,182.2,182.17,13.723]
[1722008245114,13.08,182.25,182.15,5.4899]
[1722008245115,13.08,182.19,182.15,5.4899]
[1722008245320,13.08,182.18,182.13,19.216]
[1722008245719,13.08,182.18,182.13,13.7258]
[1722008245929,13.08,182.17,182.13,13.7258]
[1722008246324,13.08,182.15,182.13,13.7258]
[1722008246514,13.08,182.14,182.09,19.2206]
[1722008246719,13.08,182.13,182.09,19.2206]
[1722008246925,13.08,182.14,182.12,5.4908]
[1722008247237,13.08,182.15,182.12,5.4908]
[1722008247439,13.08,182.16,182.13,5.4905]
[1722008247621,13.08,182.17,182.14,5.4902]
[1722008247926,13.08,182.17,182.12,13.08]
[1722008247927,13.08,182.17,182.12,18.5705]
[1722008248446,13.08,182.17,182.13,5.4905]
[1722008248946,13.08,182.16,182.12,5.4908]
[1722008249143,13.08,182.16,182.13,5.4905]
[1722008249945,13.08,182.16,182.12,5.4908]
[1722008250219,13.08,182.15,182.13,5.4905]
[1722008250526,13.08,182.16,182.13,5.4905]
[1722008250733,13.08,182.16,182.12,5.4908]
[1722008251553,13.08,182.16,182.11,19.2183]
[1722008251843,13.08,182.16,182.12,5.4907]
[1722008252062,13.08,182.16,182.11,19.2183]
[1722008252740,13.08,182.16,182.12,5.4908]
[1722008253051,13.08,182.16,182.11,19.2183]
[1722008253457,13.08,182.16,182.12,5.4908]
[1722008253833,13.08,182.16,182.11,19.2183]
[1722008254325,13.08,182.16,182.12,5.4908]
[1722008254731,13.08,182.16,182.11,19.2183]
[1722008255132,13.08,182.16,182.12,5.4908]
[1722008256345,13.08,182.16,182.13,5.4905]
[1722008256839,13.08,182.16,182.12,5.4908]
[1722008257552,13.08,182.15,182.11,13.7272]
[1722008257849,28.0332,182.2,182.11,13.7272]
[1722008257850,13.08,182.14,182.11,13.7272]
[1722008258034,13.08,182.12,182.08,19.2221]
[1722008258237,13.08,182.11,182.08,13.7301]
[1722008258634,13.08,182.1,182.08,13.7301]
[1722008258840,13.08,182.1,182.05,26.8122]
[1722008259040,13.08,182.09,182.05,13.7322]
[1722008259525,13.08,182.09,182.06,5.4926]
[1722008259930,13.08,182.08,182.05,13.7322]
[1722008260838,13.08,182.06,181.99,6.1701]
[1722008261150,13.08,182.05,182.0,13.08]
[1722008261455,13.08,182.04,181.99,26.8168]
[1722008261650,13.08,182.03,181.99,13.7368]
[1722008261826,13.08,182.02,181.99,13.7368]
[1722008262031,13.08,182.02,181.99,19.2315]
[1722008263355,13.08,182.03,182.0,5.4944]
[1722008263553,6.86528448,182.09,182.0,5.4944]
[1722008263554,13.08,182.04,182.0,5.4944]
[1722008265043,13.08,182.04,181.99,19.2316]
[1722008266169,13.08,182.03,181.99,19.2316]
[1722008266447,13.08,182.02,181.97,5.4953]
[1722008266656,13.08,182.01,181.97,5.4953]
[1722008267454,13.08,182.02,181.98,5.495]
[1722008267666,13.08,182.02,181.97,18.5753]
[1722008268238,13.08,182.02,181.98,5.495]
[1722008268849,13.08,182.02,181.97,13.08]
[1722008269044,13.08,182.01,181.97,5.4953]
[1722008269468,13.08,182.01,181.98,5.495]
[1722008269658,13.08,182.01,181.97,5.4953]
[1722008270458,1.373623,182.05,181.98,5.495]
[1722008270459,13.08,182.02,181.98,5.495]
[1722008270665,6.094,182.06,181.99,5.4947]
[1722008271174,6.094,182.06,181.98,5.495]
[1722008271753,6.094,182.06,181.99,5.4947]
[1722008272148,13.08,182.03,181.99,5.4947]
[1722008272677,13.08,182.04,182.0,5.4944]
[1722008272976,13.08,182.02,181.98,19.2322]
[1722008273475,6.094,182.06,181.97,13.08]
[1722008273476,13.08,182.01,181.97,5.4953]
[1722008273685,13.08,182.02,181.97,5.4953]
[1722008274173,13.08,182.02,181.96,13.08]
[1722008274174,13.08,182.02,181.98,5.495]
[1722008280175,13.08,182.03,181.99,5.4947]
[1722008280385,13.08,182.03,181.98,5.495]
[1722008282461,13.08,182.03,181.97,13.738]
[1722008282779,13.08,182.02,181.97,13.738]
[1722008282974,13.08,182.02,181.97,26.818]
[1722008283161,13.08,182.03,181.98,13.08]
[1722008283369,13.08,182.03,181.98,18.575]
[1722008284664,13.08,182.03,181.99,6.59356244]
[1722008285379,13.08,182.03,181.99,1.09886244]
[1722008286488,13.08,182.01,181.96,18.5756]
[1722008287080,13.08,182.02,181.96,18.5756]
[1722008287386,13.08,182.02,181.97,5.4953]
[1722008287884,13.08,182.02,181.97,18.5753]
[1722008288762,13.08,182.01,181.97,5.4953]
[1722008290685,13.08,182.01,181.96,19.2342]
[1722008290867,13.08,182.01,181.97,5.4953]
[1722008291389,13.08,181.99,181.93,26.8214]
[1722008291889,13.08,181.99,181.95,5.4959]
[1722008292893,13.08,181.99,181.92,6.80526797]
[1722008293178,13.08,181.99,181.94,13.08]
[1722008293488,13.08,181.98,181.93,13.08]
[1722008293673,13.08,181.97,181.92,13.08]
[1722008293858,13.08,181.97,181.93,13.7414]
[1722008294569,13.08,181.97,181.93,19.2377]
[1722008297081,13.08,181.97,181.94,5.4961]
[1722008298188,1.37394238,182.02,181.93,13.7414]
[1722008298189,13.08,181.95,181.93,13.7414]
[1722008298392,13.08,181.94,181.92,5.4966]
[1722008298692,13.08,181.93,181.92,5.4966]
[1722008298891,13.08,181.93,181.9,13.7435]
[1722008299192,13.08,181.91,181.89,1.09936395]
[1722008299365,13.08,181.92,181.89,1.09936395]
[1722008299685,13.08,181.92,181.89,6.59706395]
[1722008300378,13.08,181.93,181.9,6.59664088]
[1722008300586,67.7701,181.98,181.9,6.59664088]